bitfinex/quotes_BTCUSD_20240828
["timestamp","ask_amount","ask_price","bid_price","bid_amount"]
[1724859115055,0.510899,58835.0,58834.0,0.0904987]
[1724859115979,1.24040958,58835.0,58834.0,0.0118987]
[1724859116227,1.36445054,58835.0,58834.0,0.0118987]
[1724859116458,1.24040958,58835.0,58834.0,0.0118987]
[1724859119393,0.87747658,58835.0,58834.0,0.0118987]
[1724859119638,1.24040958,58835.0,58834.0,0.0118987]
[1724859120604,0.02764458,58835.0,58834.0,0.0118987]
[1724859120824,0.90047658,58835.0,58834.0,0.0118987]
[1724859121054,1.33546036,58835.0,58834.0,0.0118987]
[1724859121295,1.24040958,58835.0,58834.0,0.0118987]
[1724859122031,1.65744258,58835.0,58834.0,0.0118987]
[1724859122279,0.87747658,58835.0,58834.0,0.0118987]
[1724859122540,0.53754358,58835.0,58834.0,0.0118987]
[1724859122784,0.19761058,58835.0,58834.0,0.0766987]
[1724859123047,0.850832,58835.0,58834.0,0.0766987]
[1724859123270,0.510899,58835.0,58834.0,0.09358127]
[1724859123998,0.001,58835.0,58834.0,0.0766987]
[1724859124229,0.170966,58835.0,58834.0,0.0766987]
[1724859124945,0.001,58835.0,58834.0,0.0766987]
[1724859125216,0.510899,58835.0,58834.0,0.0766987]
[1724859125708,0.850832,58835.0,58834.0,0.0766987]
[1724859125965,1.30385062,58835.0,58834.0,0.0118987]
[1724859126225,1.69381484,58835.0,58834.0,0.0118987]
[1724859126473,1.84547539,58835.0,58834.0,0.0118987]
[1724859126726,2.20820888,58835.0,58834.0,0.0118987]
[1724859127446,2.13316204,58835.0,58834.0,0.0118987]
[1724859127929,2.1618516,58835.0,58834.0,0.0118987]
[1724859128157,2.26205871,58835.0,58834.0,0.0118987]
[1724859128642,2.5869846,58835.0,58834.0,0.0008987]
[1724859128899,3.0034176,58835.0,58834.0,0.0008987]
[1724859129140,3.09498014,58835.0,58834.0,0.0068987]
[1724859129367,3.09498014,58835.0,58834.0,0.00678576]
[1724859129592,3.09498014,58835.0,58834.0,0.00078576]
[1724859129843,3.09598014,58835.0,58834.0,0.00078576]
[1724859130085,3.09598014,58835.0,58834.0,0.00051906]
[1724859130317,2.39031365,58835.0,58834.0,0.00051906]
[1724859130546,1.95029503,58835.0,58834.0,0.00051906]
[1724859130778,1.95529503,58835.0,58834.0,0.00051906]
[1724859131008,1.96229503,58835.0,58834.0,0.00051906]
[1724859131519,2.12424744,58835.0,58834.0,0.00051906]
[1724859131756,2.13124744,58835.0,58834.0,0.00051906]
[1724859132007,2.13084667,58835.0,58834.0,6e-08]
[1724859132264,0.592877,58826.0,58825.0,0.0008987]
[1724859132498,0.592877,58826.0,58820.0,4e-05]
[1724859132499,0.187007,58821.0,58820.0,4e-05]
[1724859132757,1.93195742,58821.0,58820.0,4e-05]
[1724859133009,2.24008603,58821.0,58820.0,4e-05]
[1724859133254,2.24008603,58821.0,58801.0,4e-05]
[1724859133255,1.99297249,58818.0,58801.0,0.50544786]
[1724859133486,3.18798832,58818.0,58801.0,0.50544786]
[1724859133719,3.31098832,58818.0,58801.0,0.50544786]
[1724859133942,2.60622383,58818.0,58801.0,0.50544786]
[1724859134165,2.80006574,58818.0,58801.0,0.58604786]
[1724859134625,2.2105831,58818.0,58806.0,0.0649]
[1724859134848,2.27761826,58818.0,58806.0,0.0649]
[1724859135140,1.21879756,58818.0,58812.0,0.0806]
[1724859135584,1.21879756,58818.0,58809.0,0.0806]
[1724859136069,1.29929756,58818.0,58806.0,0.0649]
[1724859136297,1.29929756,58818.0,58801.0,4e-05]
[1724859136298,2.08176205,58818.0,58801.0,4e-05]
[1724859136557,1.537247,58814.0,58801.0,4e-05]
[1724859136790,2.42192505,58814.0,58801.0,4e-05]
[1724859137014,2.18219156,58814.0,58801.0,4e-05]
[1724859137236,2.56632575,58814.0,58813.0,0.00084484]
[1724859137459,2.57004549,58814.0,58813.0,0.00084484]
[1724859137702,2.97870456,58814.0,58813.0,8.4e-07]
[1724859137929,1.681258,58802.0,58801.0,4e-05]
[1724859138160,2.16699149,58802.0,58801.0,4e-05]
[1724859138384,2.55504107,58802.0,58801.0,4e-05]
[1724859138610,2.67315564,58802.0,58801.0,4e-05]
[1724859138884,2.65189543,58802.0,58801.0,4e-05]
[1724859139138,2.72095784,58802.0,58801.0,4e-05]
[1724859139376,2.6026387,58802.0,58801.0,4e-05]
[1724859139819,2.68733162,58802.0,58801.0,4e-05]
[1724859140254,2.6126387,58802.0,58801.0,4e-05]
[1724859140511,2.6256387,58802.0,58801.0,4e-05]
[1724859140960,2.22458912,58802.0,58801.0,4e-05]
[1724859141455,2.23058912,58802.0,58801.0,4e-05]
[1724859141711,2.20945229,58802.0,58801.0,4e-05]
[1724859141940,2.20465686,58802.0,58801.0,0.0009398]
[1724859142168,2.13945686,58802.0,58801.0,0.0009398]
[1724859142391,2.14425229,58802.0,58801.0,0.0009398]
[1724859142624,2.30265978,58802.0,58801.0,0.0009398]
[1724859143078,2.31565978,58802.0,58801.0,0.0009398]
[1724859143327,1.70348414,58802.0,58801.0,0.0009398]
[1724859143553,2.03060814,58802.0,58801.0,0.0009398]
[1724859143778,2.03460814,58802.0,58801.0,0.0009398]
[1724859143999,1.69448414,58802.0,58801.0,0.0009398]
[1724859144236,1.69048414,58802.0,58801.0,0.0009398]
[1724859144680,1.88303578,58802.0,58801.0,0.0009398]
[1724859144898,1.71448414,58802.0,58801.0,0.0009398]
[1724859145614,2.05460814,58802.0,58801.0,0.0009398]
[1724859145833,1.71448414,58802.0,58801.0,0.0009398]
[1724859146051,1.34109937,58802.0,58801.0,0.0009398]
[1724859146717,1.47570931,58802.0,58801.0,0.0009398]
[1724859147153,1.34109937,58802.0,58801.0,0.0009398]
[1724859147384,1.70383286,58802.0,58801.0,0.0009398]
[1724859147621,0.02766537,58802.0,58801.0,0.1444398]
[1724859147855,0.02766537,58802.0,58801.0,0.31470937]
[1724859148100,0.02766537,58802.0,58801.0,0.65483937]
[1724859148531,0.02766537,58802.0,58801.0,0.31470937]
[1724859148743,0.02766537,58802.0,58801.0,0.65483937]
[1724859148963,0.02666537,58802.0,58801.0,0.14464437]
[1724859149197,0.53685137,58802.0,58801.0,0.1444398]
[1724859149426,0.93166051,58802.0,58801.0,0.1454398]
[1724859149854,0.87697537,58802.0,58801.0,0.1444398]
[1724859150075,0.89997537,58802.0,58801.0,0.1444398]
[1724859150301,0.90097537,58802.0,58801.0,0.0666398]
[1724859150596,1.33119691,58802.0,58801.0,0.0666398]
[1724859150819,1.33119691,58802.0,58801.0,0.0019398]
[1724859150820,1.77822583,58802.0,58801.0,0.0019398]
[1724859151044,2.61947383,58802.0,58801.0,0.0019398]
[1724859151264,2.63147383,58802.0,58801.0,0.0019398]
[1724859151727,2.67555302,58802.0,58801.0,0.0019398]
[1724859151959,2.63147383,58802.0,58801.0,0.0019398]
[1724859152185,2.63147383,58802.0,58801.0,0.00135283]
[1724859152411,2.29134983,58802.0,58801.0,0.00135283]
[1724859152840,2.29034983,58802.0,58801.0,0.00035283]
[1724859153065,2.63047383,58802.0,58801.0,0.00035283]
[1724859154633,2.63147383,58802.0,58801.0,0.00135283]
[1724859155084,2.63047383,58802.0,58801.0,0.00035283]
[1724859155329,2.97359783,58802.0,58801.0,0.00035283]
[1724859155580,2.97559783,58802.0,58801.0,0.00035283]
[1724859155830,2.97059783,58802.0,58801.0,0.00035283]
[1724859156279,2.98159783,58802.0,58801.0,0.00022634]
[1724859156924,2.64147383,58802.0,58801.0,0.00022634]
[1724859157396,2.64147383,58802.0,58796.0,0.008987]
[1724859157397,0.86717743,58797.0,58796.0,0.008987]
[1724859157630,0.88980192,58792.0,58790.0,0.0008998]
[1724859157900,0.88980192,58792.0,58780.0,0.1]
[1724859157901,0.94727743,58790.0,58789.0,6e-07]
[1724859158126,1.62777143,58786.0,58780.0,0.1]
[1724859158355,2.13218843,58786.0,58780.0,0.1]
[1724859158611,2.49540543,58786.0,58780.0,0.1]
[1724859158846,2.49340543,58786.0,58780.0,0.1]
[1724859159082,2.08898843,58786.0,58780.0,0.1]
[1724859159337,1.73877143,58786.0,58780.0,0.1]
[1724859159564,1.74877143,58786.0,58780.0,0.1638]
[1724859160085,1.653976,58786.0,58780.0,0.1638]
[1724859160833,1.653976,58786.0,58784.0,0.0783]
[1724859160834,1.313759,58786.0,58784.0,0.0783]
[1724859161065,1.327759,58786.0,58784.0,0.0783]
[1724859161311,1.327759,58786.0,58780.0,0.1638]
[1724859161312,1.80361383,58786.0,58780.0,0.1638]
[1724859161552,1.313759,58786.0,58780.0,0.1638]
[1724859161776,0.950542,58786.0,58785.0,0.07834]
[1724859162036,0.884942,58786.0,58785.0,0.07834]
[1724859162275,0.884942,58786.0,58785.0,0.13964457]
[1724859162276,0.001,58786.0,58785.0,0.13964457]
[1724859162503,0.001,58786.0,58785.0,0.34073113]
[1724859162737,0.001,58786.0,58785.0,0.99019957]
[1724859163216,0.50540786,58816.0,58809.0,0.00020457]
[1724859163487,0.50540786,58816.0,58812.0,0.00020457]
[1724859163740,0.000818,58818.0,58816.0,0.00020457]
[1724859163973,0.01779797,58836.0,58830.0,0.0742]
[1724859164222,0.1240073,58843.0,58830.0,0.0742]
[1724859164223,0.339899,58841.0,58833.0,0.00020457]
[1724859164474,0.000817,58849.0,58836.0,0.00020457]
[1724859164704,0.000817,58849.0,58830.0,0.42621046]
[1724859164705,0.000817,58849.0,58842.0,0.00020457]
[1724859164924,0.169935,58846.0,58844.0,0.0659]
[1724859165186,0.509805,58846.0,58845.0,0.0758]
[1724859165407,0.509805,58846.0,58835.0,0.00020457]
[1724859165408,0.33987,58846.0,58835.0,0.00020457]
[1724859165635,0.509865,58839.0,58838.0,0.064]
[1724859166140,0.849775,58839.0,58838.0,0.064]
[1724859166364,0.849775,58839.0,58819.0,0.34002]
[1724859166365,0.509952,58829.0,58828.0,0.0603]
[1724859166833,0.84992,58829.0,58828.0,0.0603]
[1724859167054,0.87656742,58829.0,58828.0,0.0603]
[1724859167510,1.12121916,58829.0,58828.0,0.0603]
[1724859167733,0.170015,58818.0,58817.0,0.00020457]
[1724859167950,0.510046,58818.0,58817.0,0.00020457]
[1724859168164,0.850077,58818.0,58817.0,0.14300457]
[1724859168391,0.850077,58818.0,58817.0,0.1428]
[1724859168632,0.8767296,58818.0,58817.0,0.1428]
[1724859169084,0.8997296,58818.0,58817.0,0.1428]
[1724859169362,0.170036,58811.0,58810.0,0.1428]
[1724859169595,0.510177,58803.0,58802.0,0.1428]
[1724859169829,0.850295,58803.0,58802.0,0.1428]
[1724859170061,0.8769541,58803.0,58802.0,0.1428]
[1724859170296,0.0266591,58803.0,58791.0,0.00020457]
[1724859170551,0.850455,58792.0,58791.0,0.00020457]
[1724859170782,0.510273,58792.0,58791.0,0.00020457]
[1724859171050,0.510273,58792.0,58791.0,0.14680457]
[1724859171289,0.510273,58792.0,58785.0,0.0840398]
[1724859171290,0.4252261,58792.0,58785.0,0.0840398]
[1724859171548,0.850542,58786.0,58785.0,0.0009398]
[1724859171784,0.510325,58786.0,58785.0,0.0009398]
[1724859172015,0.340194,58790.0,58785.0,0.00114437]
[1724859172260,0.3402,58789.0,58785.0,0.00114437]
[1724859172503,0.170108,58786.0,58785.0,0.00114437]
[1724859172765,0.170103,58788.0,58785.0,0.00114437]
[1724859172997,0.170107,58787.0,58785.0,0.00114437]
[1724859173238,0.170108,58786.0,58785.0,0.00114437]
[1724859173938,0.001,58792.0,58791.0,0.00020457]
[1724859174223,0.1,58798.0,58793.0,0.170087]
[1724859174472,0.170072,58799.0,58798.0,0.00020457]
[1724859174473,0.510211,58799.0,58798.0,0.00020457]
[1724859174719,0.340136,58800.0,58791.0,0.13950457]
[1724859175004,0.170063,58802.0,58791.0,0.13950457]
[1724859175204,0.170068,58800.0,58795.0,0.17008]
[1724859175453,0.1,58806.0,58800.0,0.170066]
[1724859175701,0.270054,58805.0,58800.0,0.169066]
[1724859175962,0.340084,58809.0,58799.0,0.340137]
[1724859176203,0.340084,58809.0,58798.0,0.0768]
[1724859176204,0.04983806,58816.0,58803.0,0.170056]
[1724859176437,0.04983806,58817.0,58798.0,0.0768]
[1724859176698,0.17007,58799.0,58798.0,0.0768]
[1724859176933,0.510211,58799.0,58798.0,0.0768]
[1724859177413,0.850352,58799.0,58798.0,0.0768]
[1724859177675,0.510211,58799.0,58798.0,0.0768]
[1724859177936,0.510238,58796.0,58795.0,0.002]
[1724859178187,0.04966064,58799.0,58792.0,0.0784]
[1724859178188,1.190616,58793.0,58792.0,0.0784]
[1724859178440,0.85044,58793.0,58792.0,0.0784]
[1724859178679,0.850455,58792.0,58791.0,0.06220457]
[1724859178909,0.850455,58792.0,58786.0,0.0784]
[1724859178910,0.510316,58787.0,58786.0,0.0784]
[1724859179128,0.850527,58787.0,58786.0,0.0784]
[1724859180581,0.87719302,58787.0,58786.0,0.0784]
[1724859180816,0.53698202,58787.0,58786.0,0.0784]
[1724859181319,0.19677102,58787.0,58786.0,0.0784]
[1724859181320,0.02146149,58787.0,58786.0,0.0784]
[1724859181562,0.510316,58787.0,58786.0,0.0784]
[1724859181800,0.510325,58786.0,58785.0,0.0671398]
[1724859182047,0.510325,58786.0,58785.0,0.0009398]
[1724859182048,1.190759,58786.0,58785.0,0.0009398]
[1724859182313,0.001,58787.0,58785.0,0.1710498]
[1724859182571,0.001,58787.0,58785.0,0.0009398]
[1724859183086,0.170108,58786.0,58785.0,0.0009398]
[1724859183373,0.510325,58786.0,58785.0,0.0009398]
[1724859183912,0.340205,58789.0,58785.0,0.0009398]
[1724859184156,0.340078,58810.0,58788.0,0.0766]
[1724859184157,0.04983806,58810.0,58788.0,0.0766]
[1724859184431,0.04983806,58810.0,58798.0,0.340143]
[1724859184432,0.170049,58807.0,58798.0,0.340143]
[1724859184664,0.17005,58807.0,58802.0,0.170062]
[1724859184939,0.340074,58811.0,58802.0,0.0571896]
[1724859184940,0.340091,58808.0,58802.0,0.0571896]
[1724859185149,0.04983806,58815.0,58799.0,0.0617]
[1724859185376,0.170068,58800.0,58799.0,0.0607]
[1724859186126,0.340117,58804.0,58799.0,0.0607]
[1724859186127,0.170064,58802.0,58799.0,0.0607]
[1724859186413,0.170043,58809.0,58805.0,0.170053]
[1724859186654,0.170037,58811.0,58807.0,0.170046]
[1724859186915,0.340055,58814.0,58807.0,0.0850267]
[1724859187175,0.04987482,58817.0,58800.0,0.0230776]
[1724859187450,0.07481223,58818.0,58803.0,0.170058]
[1724859187451,0.001,58807.0,58803.0,0.170058]
[1724859187728,0.001,58807.0,58802.0,0.004]
[1724859187940,0.04987482,58816.0,58809.0,0.340084]
[1724859188201,0.170014,58819.0,58814.0,0.170026]
[1724859188483,0.04987482,58829.0,58818.0,0.170014]
[1724859188771,0.4753,58837.0,58815.0,0.1398]
[1724859188772,0.339962,58830.0,58819.0,0.0309814]
[1724859189004,0.04987482,58835.0,58815.0,0.1388]
[1724859189238,0.340001,58824.0,58815.0,0.1388]
[1724859189463,0.07481223,58835.0,58815.0,0.1388]
[1724859189464,0.04987482,58835.0,58816.0,0.340039]
[1724859189730,0.16999,58827.0,58823.0,0.17]
[1724859189955,0.339968,58829.0,58824.0,0.0792]
[1724859190220,0.38979282,58838.0,58824.0,0.0792]
[1724859190449,0.04987482,58840.0,58834.0,0.169968]
[1724859190684,0.04987482,58842.0,58840.0,0.169951]
[1724859190951,0.000817,58845.0,58842.0,0.0792]
[1724859191414,0.50983,58843.0,58842.0,0.0792]
[1724859191657,0.849717,58843.0,58842.0,0.0792]
[1724859191885,0.169966,58836.0,58829.0,0.339968]
[1724859192133,0.339887,58843.0,58835.0,0.0769]
[1724859192366,0.3399,58841.0,58835.0,0.0769]
[1724859192611,0.169961,58837.0,58835.0,0.0769]
[1724859192874,0.169959,58838.0,58835.0,0.0769]
[1724859193114,0.000817,58845.0,58835.0,0.0769]
[1724859193115,0.169963,58836.0,58835.0,0.0769]
[1724859193358,0.50989,58836.0,58835.0,0.0769]
[1724859193595,0.849817,58836.0,58835.0,0.0769]
[1724859193848,0.50989,58836.0,58835.0,0.0769]
[1724859194336,0.51089,58836.0,58835.0,0.0829]
[1724859194846,0.000817,58845.0,58835.0,0.0769]
[1724859194847,0.340695,58845.0,58835.0,0.0769]
[1724859195096,0.000817,58845.0,58835.0,0.0769]
[1724859195348,0.170963,58836.0,58835.0,0.0829]
[1724859195573,0.850817,58836.0,58835.0,0.0829]
[1724859196282,1.190744,58836.0,58835.0,0.006]
[1724859196648,1.3098184,58836.0,58835.0,0.006]
[1724859196887,0.849977,58825.0,58824.0,0.1463]
[1724859197128,0.509986,58825.0,58824.0,0.1463]
[1724859197844,0.509946,58825.0,58824.0,0.1463]
[1724859198082,0.510946,58825.0,58824.0,0.1523]
[1724859198314,0.001,58825.0,58824.0,0.1523]
[1724859198535,0.849977,58825.0,58824.0,0.1463]
[1724859198776,0.170015,58818.0,58817.0,0.1448]
[1724859199042,0.510046,58818.0,58817.0,0.1448]
[1724859199320,0.510046,58818.0,58816.0,4e-05]
[1724859199321,0.170018,58817.0,58816.0,4e-05]
[1724859199550,1.190129,58817.0,58816.0,4e-05]
[1724859200073,0.340994,58825.0,58817.0,0.170017]
[1724859200320,0.510055,58817.0,58816.0,4e-05]
[1724859200580,1.190129,58817.0,58816.0,4e-05]
[1724859200821,0.11103263,58832.0,58816.0,4e-05]
[1724859201077,0.510046,58818.0,58817.0,0.083]
[1724859201305,0.001,58825.0,58817.0,0.083]
[1724859201564,0.34,58824.0,58817.0,0.083]
[1724859201786,0.1,58831.0,58819.0,0.340024]
[1724859202009,0.1,58831.0,58818.0,0.0423082]
[1724859202010,0.169996,58825.0,58820.0,0.170009]
[1724859202237,0.169996,58825.0,58818.0,0.0423082]
[1724859202238,0.339983,58827.0,58818.0,0.2123232]
[1724859202456,0.339983,58827.0,58819.0,0.23364219]
[1724859202457,0.170002,58823.0,58819.0,0.23364219]
[1724859203153,0.001,58825.0,58819.0,0.06363019]
[1724859203383,0.001,58825.0,58820.0,0.14659983]
[1724859203864,0.001,58825.0,58824.0,0.660195]
[1724859204125,0.000817,58836.0,58835.0,0.422933]
[1724859204348,0.000817,58836.0,58835.0,0.312166]
[1724859204578,0.000817,58836.0,58835.0,0.7173099]
[1724859204794,0.000817,58836.0,58835.0,0.38077587]
[1724859205026,0.000817,58836.0,58835.0,1.06264187]
[1724859205257,0.000817,58836.0,58835.0,1.40257487]
[1724859205492,0.000817,58836.0,58835.0,1.39957487]
[1724859206419,0.000817,58836.0,58835.0,1.40657487]
[1724859206667,0.000817,58836.0,58835.0,1.74650787]
[1724859206891,0.000817,58845.0,58844.0,0.909902]
[1724859207347,0.000817,58845.0,58844.0,0.913902]
[1724859207571,0.000817,58845.0,58844.0,1.253783]
[1724859207832,0.000817,58845.0,58844.0,1.255783]
[1724859208333,0.001817,58845.0,58844.0,0.922902]
[1724859208561,0.001817,58845.0,58844.0,0.2793792]
[1724859208805,0.001817,58845.0,58844.0,0.014]
[1724859208806,0.851504,58845.0,58844.0,0.014]
[1724859209052,1.332279,58845.0,58844.0,0.014]
[1724859209282,1.78301159,58845.0,58844.0,0.014]
[1724859209498,2.31443823,58845.0,58844.0,0.014]
[1724859209719,2.37544645,58845.0,58844.0,0.014]
[1724859209983,2.37344645,58845.0,58844.0,0.014]
[1724859210229,2.37544645,58845.0,58844.0,0.014]
[1724859210460,0.170004,58822.0,58821.0,0.50540786]
[1724859210695,0.339988,58826.0,58821.0,0.50540786]
[1724859210917,0.0752,58838.0,58818.0,0.0607]
[1724859210918,0.170013,58819.0,58818.0,0.0607]
[1724859211149,0.510039,58819.0,58818.0,0.0607]
[1724859211366,0.510039,58819.0,58818.0,0.07444387]
[1724859211367,0.170013,58819.0,58818.0,0.07444387]
[1724859211643,0.340003,58823.0,58818.0,0.07444387]
[1724859211644,0.170009,58821.0,58818.0,0.0607]
[1724859211877,0.44094959,58845.0,58816.0,0.0767387]
[1724859211878,0.00100002,58822.0,58816.0,0.0009387]
[1724859212102,0.0791,58825.0,58816.0,0.0009387]
[1724859212103,0.850092,58817.0,58816.0,0.0009387]
[1724859212539,0.510055,58817.0,58816.0,0.0009387]
[1724859212987,0.850092,58817.0,58816.0,0.0009387]
[1724859213437,0.1454,58816.0,58785.0,0.0009398]
[1724859213674,0.930827,58787.0,58785.0,0.0009398]
[1724859213911,1.336138,58787.0,58785.0,0.0009398]
[1724859214154,1.804349,58787.0,58785.0,0.0009398]
[1724859214403,1.806349,58787.0,58785.0,0.0009398]
[1724859214626,1.816349,58787.0,58785.0,0.0009398]
[1724859214856,2.15656,58787.0,58785.0,0.0009398]
[1724859215088,1.808349,58787.0,58785.0,0.0009398]
[1724859215316,1.816349,58787.0,58786.0,0.0018998]
[1724859215579,1.86483243,58787.0,58786.0,0.0018998]
[1724859215810,2.35434289,58787.0,58786.0,0.0018998]
[1724859216038,2.23375,58787.0,58786.0,0.0018998]
[1724859216507,1.396038,58787.0,58786.0,0.0018998]
[1724859217257,1.388038,58787.0,58786.0,0.0008998]
[1724859217699,1.388038,58787.0,58786.0,0.0018998]
[1724859217700,1.398038,58787.0,58786.0,0.0018998]
[1724859218164,1.388038,58787.0,58786.0,0.0008998]
[1724859218380,1.392038,58787.0,58786.0,0.0008998]
[1724859218830,1.388038,58787.0,58786.0,0.0008998]
[1724859219346,1.5308418,58787.0,58786.0,0.0008998]
[1724859219803,1.392038,58787.0,58786.0,0.0008998]
[1724859220713,1.388038,58787.0,58786.0,0.0008998]
[1724859221186,1.390038,58787.0,58786.0,0.0008998]
[1724859221426,1.286738,58787.0,58786.0,0.0008998]
[1724859221661,1.309738,58787.0,58786.0,0.0008998]
[1724859221956,1.190959,58776.0,58775.0,0.008987]
[1724859222250,1.711633,58776.0,58775.0,0.008987]
[1724859222738,2.233934,58776.0,58775.0,0.008987]
[1724859223004,2.231934,58776.0,58775.0,0.008987]
[1724859223291,2.29264867,58776.0,58775.0,0.008987]
[1724859223558,1.86824767,58776.0,58775.0,0.008987]
[1724859224022,1.88395747,58776.0,58775.0,0.008987]
[1724859224252,1.88595747,58776.0,58775.0,0.009987]
[1724859224945,1.87395747,58776.0,58775.0,0.009987]
[1724859225190,2.22423147,58776.0,58775.0,0.009987]
[1724859225430,2.22623147,58776.0,58775.0,0.009987]
[1724859226625,1.8202428,58776.0,58775.0,0.009987]
[1724859227369,1.8222428,58776.0,58775.0,0.009987]
[1724859227839,2.1675168,58776.0,58775.0,0.009987]
[1724859228088,1.8252428,58776.0,58775.0,0.009987]
[1724859228313,1.8272428,58776.0,58775.0,0.009987]
[1724859228548,1.8252428,58776.0,58775.0,0.009987]
[1724859228793,1.8052428,58776.0,58775.0,0.009987]
[1724859230397,1.7403428,58776.0,58775.0,0.009987]
[1724859230899,1.185959,58776.0,58775.0,0.009987]
[1724859232276,1.285959,58776.0,58775.0,0.009987]
[1724859233724,0.945685,58776.0,58775.0,0.009987]
[1724859233949,0.94548026,58776.0,58775.0,0.009987]
[1724859234180,0.50520626,58776.0,58775.0,0.090327]
[1724859234645,0.50520626,58776.0,58775.0,0.010027]
[1724859234646,0.84548026,58776.0,58775.0,0.010027]
[1724859234971,1.18575426,58776.0,58775.0,0.009027]
[1724859235409,1.18675426,58776.0,58775.0,0.015027]
[1724859235843,1.18575426,58776.0,58775.0,0.009027]
[1724859237426,1.18675426,58776.0,58775.0,0.014027]
[1724859238082,1.18575426,58776.0,58775.0,0.009027]
[1724859238292,1.18575426,58776.0,58775.0,0.012027]
[1724859238502,1.1968213,58776.0,58775.0,0.012027]
[1724859238749,1.18575426,58776.0,58775.0,0.012027]
[1724859238959,1.18575426,58776.0,58775.0,0.009027]
[1724859239166,1.18675426,58776.0,58775.0,0.013027]
[1724859239839,1.76870369,58776.0,58775.0,0.013027]
[1724859240088,2.19317769,58776.0,58775.0,0.013027]
[1724859240312,2.25427769,58776.0,58775.0,0.013027]
[1724859240522,2.25327769,58776.0,58775.0,0.009027]
[1724859240948,2.25427769,58776.0,58775.0,0.014027]
[1724859241414,2.25827769,58776.0,58775.0,0.009027]
[1724859241641,2.25827769,58776.0,58775.0,0.010027]
[1724859242098,2.13460226,58776.0,58775.0,0.010027]
[1724859242832,1.79432826,58776.0,58775.0,0.010027]
[1724859243510,1.73122826,58776.0,58775.0,0.010027]
[1724859244015,2.07850226,58776.0,58775.0,0.010027]
[1724859244253,2.07650226,58776.0,58775.0,0.010027]
[1724859244506,2.2470539,58776.0,58775.0,0.010027]
[1724859246846,2.2570539,58776.0,58775.0,0.010027]
[1724859247298,2.36889978,58776.0,58775.0,0.010027]
[1724859247546,1.872018,58760.0,58759.0,0.008987]
[1724859247829,2.15195483,58760.0,58759.0,0.008987]
[1724859248064,1.81158783,58760.0,58759.0,0.008987]
[1724859248297,2.15195483,58760.0,58759.0,0.008987]
[1724859248536,2.50932183,58760.0,58759.0,1e-06]
[1724859248762,2.56076771,58760.0,58759.0,1e-06]
[1724859249007,2.50932183,58760.0,58759.0,1e-06]
[1724859249274,2.51132183,58760.0,58759.0,1e-06]
[1724859249498,2.51132183,58760.0,58732.0,4e-05]
[1724859249499,2.732225,58759.0,58758.0,1e-06]
[1724859249726,3.02377664,58759.0,58758.0,1e-06]
[1724859249951,3.01877664,58759.0,58758.0,1e-06]
[1724859251191,2.134479,58759.0,58758.0,1e-06]
[1724859251420,1.707078,58759.0,58758.0,1e-06]
[1724859251655,1.191305,58759.0,58758.0,1e-06]
[1724859251888,1.199305,58759.0,58758.0,1e-06]
[1724859252346,1.199305,58759.0,58758.0,0.077001]
[1724859252347,0.850932,58759.0,58758.0,0.077001]
[1724859252580,1.191305,58759.0,58758.0,1e-06]
[1724859252836,1.6167712,58759.0,58758.0,1e-06]
[1724859253062,1.531678,58759.0,58758.0,1e-06]
[1724859253281,1.675078,58759.0,58758.0,1e-06]
[1724859253756,2.139979,58759.0,58758.0,1e-06]
[1724859253998,2.503352,58759.0,58758.0,1e-06]
[1724859254248,2.68290364,58759.0,58758.0,0.001001]
[1724859254695,2.34253064,58759.0,58758.0,0.001001]
[1724859254916,2.33153064,58759.0,58758.0,4.1e-05]
[1724859255141,2.33653064,58759.0,58758.0,4.1e-05]
[1724859255375,2.33653064,58759.0,58758.0,0.001041]
[1724859255608,2.33153064,58759.0,58758.0,0.001041]
[1724859255835,2.33653064,58759.0,58758.0,4.1e-05]
[1724859256982,2.67690364,58759.0,58758.0,4.1e-05]
[1724859257203,2.34553064,58759.0,58758.0,4.1e-05]
[1724859257870,2.34153064,58759.0,58758.0,4.1e-05]
[1724859258090,2.28011728,58759.0,58758.0,4.1e-05]
[1724859258322,2.27511728,58759.0,58758.0,4.1e-05]
[1724859258780,2.27511728,58759.0,58742.0,0.072909]
[1724859258781,1.533858,58752.0,58742.0,0.072909]
[1724859259009,2.31445864,58752.0,58742.0,0.009009]
[1724859259239,2.43745864,58752.0,58742.0,0.009009]
[1724859261094,2.10768134,58752.0,58742.0,0.009009]
[1724859261313,2.02948134,58752.0,58743.0,0.0796]
[1724859261529,2.36989434,58752.0,58743.0,0.0796]
[1724859261771,2.54344598,58752.0,58743.0,0.0796]
[1724859262004,2.20303298,58752.0,58743.0,0.0796]
[1724859262238,2.03448134,58752.0,58743.0,0.0796]
[1724859262733,2.03448134,58752.0,58742.0,0.009009]
[1724859263006,1.191631,58743.0,58742.0,0.009009]
[1724859263244,2.32135064,58743.0,58742.0,0.009009]
[1724859263489,2.42935064,58743.0,58742.0,0.009009]
[1724859263747,2.62090228,58743.0,58742.0,0.009009]
[1724859265200,2.61090228,58743.0,58742.0,0.009009]
[1724859265421,2.67734816,58743.0,58742.0,0.009009]
[1724859265677,2.66734816,58743.0,58742.0,0.009009]
[1724859265908,2.67734816,58743.0,58742.0,0.009009]
[1724859266898,2.62790228,58743.0,58742.0,0.009009]
[1724859267133,1.872882,58733.0,58727.0,0.008998]
[1724859267380,0.510829,58728.0,58727.0,0.008998]
[1724859267628,0.93244,58717.0,58716.0,0.008998]
[1724859267880,1.192156,58717.0,58716.0,0.008998]
[1724859268160,0.85154,58717.0,58716.0,0.074398]
[1724859268381,0.95154,58717.0,58716.0,0.008998]
[1724859268611,1.41031,58717.0,58716.0,0.008998]
[1724859268834,1.42135682,58717.0,58716.0,0.008998]
[1724859269332,1.32620282,58717.0,58716.0,0.008998]
[1724859270523,1.32620282,58717.0,58716.0,0.085798]
[1724859270524,0.95154,58717.0,58716.0,0.085798]
[1724859270992,0.95254,58717.0,58716.0,0.085798]
[1724859271470,0.95254,58717.0,58716.0,0.088798]
[1724859271471,0.610924,58717.0,58716.0,0.088798]
[1724859271716,0.510924,58717.0,58716.0,0.1634778]
[1724859271953,0.510924,58717.0,58716.0,0.154398]